bitfinex-derivatives/quotes_BTCF0:USTF0_20251219
["timestamp","ask_amount","ask_price","bid_price","bid_amount"]
[1766142618802,0.00568,88195.0,88179.0,0.0113467]
[1766142619602,0.00568,88195.0,88181.0,0.0113464]
[1766142619802,0.00568,88195.0,88178.0,0.00226815]
[1766142619999,0.00568,88195.0,88188.0,0.0113455]
[1766142620201,0.00017007,88198.0,88191.0,0.0113452]
[1766142620404,7e-08,88198.0,88191.0,0.0113452]
[1766142620591,7e-08,88198.0,88188.0,0.0113455]
[1766142622300,7e-08,88198.0,88184.0,0.00017007]
[1766142622506,7e-08,88198.0,88184.0,7e-08]
[1766142622702,0.0113449,88194.0,88184.0,7e-08]
[1766142622897,0.0170249,88194.0,88184.0,7e-08]
[1766142623405,0.00568,88194.0,88184.0,7e-08]
[1766142624410,0.00568,88194.0,88185.0,0.011346]
[1766142625208,0.00568,88194.0,88184.0,7e-08]
[1766142625998,0.011345,88193.0,88184.0,7e-08]
[1766142627508,0.00568,88194.0,88184.0,7e-08]
[1766142629095,7e-08,88198.0,88185.0,0.011346]
[1766142629506,0.00568,88197.0,88185.0,0.011346]
[1766142630504,0.00568,88197.0,88184.0,7e-08]
[1766142630704,7e-08,88198.0,88185.0,0.00196]
[1766142630910,7e-08,88198.0,88190.0,0.0113453]
[1766142631212,7e-08,88198.0,88187.0,0.0113456]
[1766142631613,7e-08,88198.0,88189.0,0.0113454]
[1766142632413,7e-08,88198.0,88186.0,0.0113458]
[1766142632716,7e-08,88198.0,88188.0,0.0113456]
[1766142633517,7e-08,88198.0,88195.0,0.0113446]
[1766142633706,0.011342,88217.0,88201.0,0.0113438]
[1766142633906,0.0169415,88220.0,88201.0,0.0113438]
[1766142634206,0.0169415,88220.0,88203.0,0.0113436]
[1766142634405,0.0169415,88220.0,88205.0,0.0113433]
[1766142634608,0.0056,88220.0,88205.0,0.0113434]
[1766142634904,0.00017007,88221.0,88200.0,0.51511959]
[1766142635110,0.00017007,88221.0,88211.0,0.0113425]
[1766142635309,0.00017007,88221.0,88209.0,0.00568]
[1766142638015,0.00017007,88221.0,88213.0,0.0113423]
[1766142638412,0.00017007,88221.0,88209.0,0.00568]
[1766142638617,0.00017007,88221.0,88210.0,0.0113427]
[1766142638800,0.00017007,88221.0,88209.0,0.00568]
[1766142639407,0.00017007,88221.0,88209.0,0.0170228]
[1766142639702,0.00017007,88221.0,88209.0,0.00568]
[1766142639910,0.0113384,88245.0,88209.0,0.00568]
[1766142639911,2.38284,88254.0,88225.0,0.0113407]
[1766142640104,0.00568,88253.0,88228.0,0.0113404]
[1766142640309,0.00568,88253.0,88225.0,0.00436]
[1766142640310,0.00568,88253.0,88230.0,0.0113401]
[1766142640508,0.0113378,88249.0,88230.0,0.0113401]
[1766142640909,0.00017007,88248.0,88231.0,0.00017007]
[1766142641217,0.011338,88247.0,88231.0,0.00017007]
[1766142643709,0.00017007,88248.0,88231.0,0.01151007]
[1766142644016,0.00017007,88248.0,88233.0,0.0113397]
[1766142644217,0.00272,88254.0,88234.0,0.00568]
[1766142644519,0.00272,88254.0,88237.0,0.0113392]
[1766142645217,0.00272,88254.0,88239.0,0.0113389]
[1766142645410,0.00289007,88254.0,88239.0,0.0113389]
[1766142645809,0.00289007,88254.0,88236.0,0.0113394]
[1766142646019,0.00289007,88254.0,88238.0,0.0113391]
[1766142648020,0.00289007,88254.0,88242.0,0.0113387]
[1766142648715,0.00017007,88254.0,88244.0,0.0113383]
[1766142648918,0.00568,88261.0,88244.0,0.0113383]
[1766142649219,0.00568,88265.0,88249.0,0.0113377]
[1766142650318,0.0170157,88265.0,88249.0,0.0113377]
[1766142650719,0.0170157,88265.0,88248.0,0.00016997]
[1766142653011,0.00568,88265.0,88248.0,0.00016997]
[1766142653214,0.00568,88265.0,88249.0,0.0113378]
[1766142653822,0.00568,88265.0,88251.0,0.0113374]
[1766142654623,0.00568,88265.0,88254.0,0.011337]
[1766142655324,0.00568,88265.0,88250.0,0.0113375]
[1766142655526,0.00568,88265.0,88252.0,0.0113373]
[1766142655725,0.00568,88265.0,88254.0,0.011337]
[1766142657226,0.00568,88265.0,88251.0,0.0113374]
[1766142657426,0.0170158,88265.0,88250.0,0.0113376]
[1766142657626,0.00568,88265.0,88250.0,0.0113376]
[1766142658124,0.00568,88265.0,88248.0,0.00016997]
[1766142658326,0.0113362,88262.0,88248.0,0.00016997]
[1766142658725,0.00568,88265.0,88249.0,0.0113377]
[1766142659529,0.00568,88265.0,88248.0,0.00016997]
[1766142661026,0.0113364,88260.0,88248.0,0.00016997]
[1766142661229,0.011336,88263.0,88248.0,0.00016997]
[1766142661429,0.0113362,88261.0,88248.0,0.00016997]
[1766142662229,0.0113359,88264.0,88248.0,0.01150777]
[1766142662529,0.0113361,88262.0,88248.0,0.01150777]
[1766142663227,0.0170158,88265.0,88250.0,0.0113375]
[1766142663434,0.00568,88265.0,88251.0,0.0113375]
[1766142664231,0.0113359,88264.0,88251.0,0.0113375]
[1766142664434,0.0113359,88264.0,88250.0,0.50891774]
[1766142664628,0.0113359,88264.0,88248.0,0.01150777]
[1766142665130,0.0113361,88262.0,88248.0,0.01150777]
[1766142665533,0.0170158,88265.0,88248.0,0.01150777]
[1766142665936,0.0170158,88265.0,88250.0,0.0113376]
[1766142666430,0.00568,88265.0,88250.0,0.50891774]
[1766142666734,0.00568,88265.0,88251.0,0.0113374]
[1766142667832,0.00568,88265.0,88253.0,0.0113372]
[1766142668031,0.00016997,88266.0,88253.0,0.00568]
[1766142668428,0.01150557,88266.0,88253.0,0.00568]
[1766142668730,0.01150557,88266.0,88253.0,0.0170172]
[1766142668731,0.00016997,88266.0,88253.0,0.0170172]
[1766142670739,0.00016997,88266.0,88253.0,0.00568]
[1766142671032,0.00016997,88266.0,88254.0,0.0113371]
[1766142671239,0.0113358,88264.0,88253.0,0.00568]
[1766142671444,0.00016997,88266.0,88253.0,0.00568]
[1766142672639,0.011336,88263.0,88253.0,0.00568]
[1766142673437,0.00016997,88266.0,88253.0,0.00568]
[1766142673743,0.0113361,88262.0,88253.0,0.00568]
[1766142674241,0.00016997,88266.0,88254.0,0.0113371]
[1766142674943,0.01150557,88266.0,88253.0,0.00568]
[1766142675131,0.0113359,88264.0,88253.0,0.00568]
[1766142675640,0.0113366,88259.0,88253.0,0.00568]
[1766142676443,0.0113362,88262.0,88253.0,0.00568]
[1766142677045,0.0113364,88260.0,88253.0,0.00568]
[1766142678045,0.0113373,88253.0,88248.0,0.00584997]
[1766142678247,0.0113373,88253.0,88248.0,0.00016997]
[1766142678436,0.011337,88255.0,88248.0,0.00016997]
[1766142679044,0.0113373,88253.0,88248.0,0.00016997]
[1766142679239,0.011337,88256.0,88248.0,0.00016997]
[1766142679746,0.50892123,88260.0,88248.0,0.00016997]
[1766142679930,0.01150557,88266.0,88250.0,0.50892123]
[1766142680262,0.00016997,88266.0,88254.0,0.0113371]
[1766142680445,0.00016997,88266.0,88254.0,0.00568]
[1766142682849,0.00016997,88266.0,88255.0,0.011337]
[1766142683546,2.38144,88293.0,88256.0,0.50892123]
[1766142683756,0.0113332,88285.0,88270.0,0.50892123]
[1766142684451,0.00016997,88286.0,88271.0,0.0113349]
[1766142685250,0.01150307,88286.0,88271.0,0.0113349]
[1766142688452,0.00016997,88286.0,88271.0,0.0113349]
[1766142690257,0.0113332,88285.0,88270.0,0.52593623]
[1766142691452,0.0113332,88285.0,88270.0,0.017015]
[1766142693164,0.0113332,88285.0,88270.0,0.52593623]
[1766142693555,0.00016997,88286.0,88270.0,0.51460123]
[1766142693771,0.00226507,88298.0,88270.0,0.51460123]
[1766142693772,0.0113318,88296.0,88279.0,0.0113339]
[1766142693954,0.011332,88294.0,88280.0,0.00568]
[1766142694259,0.00568,88297.0,88280.0,0.00568]
[1766142694566,0.00568,88327.0,88290.0,1.01784246]
[1766142694752,0.00016988,88317.0,88305.0,0.0113305]
[1766142695057,0.00568,88327.0,88312.0,0.0113296]
[1766142695456,0.00568,88327.0,88311.0,0.00568]
[1766142695660,0.00568,88327.0,88318.0,0.0113288]
[1766142695858,0.00436,88333.0,88318.0,0.0113288]
[1766142696162,0.00436,88333.0,88320.0,0.50892123]
[1766142696748,0.00436,88333.0,88320.0,0.52024973]
[1766142696955,2.38084,88359.0,88333.0,0.0113269]
[1766142697156,0.08909653,88362.0,88334.0,0.00356]
[1766142697157,0.50892123,88350.0,88334.0,0.00356]
[1766142697350,0.50892123,88350.0,88329.0,0.0113274]
[1766142697654,0.50892123,88350.0,88330.0,0.53018738]
[1766142697854,0.50892123,88350.0,88331.0,0.00016988]
[1766142698864,0.0170049,88349.0,88331.0,0.00016988]
[1766142699361,0.0113253,88346.0,88331.0,0.00016988]
[1766142699664,0.0113251,88348.0,88331.0,0.00016988]
[1766142700162,0.0113267,88336.0,88331.0,8e-08]
[1766142700357,0.0113267,88336.0,88320.0,0.50892123]
[1766142700551,0.50892123,88330.0,88313.0,2.3916895]
[1766142700756,0.00568,88333.0,88307.0,2.38036]
[1766142700961,0.0113281,88325.0,88308.0,0.00568]
[1766142701156,0.50892123,88330.0,88310.0,0.50892123]
[1766142701362,0.00016988,88329.0,88316.0,0.0113291]
[1766142701561,0.00016988,88329.0,88319.0,0.50892123]
[1766142702781,0.00016988,88329.0,88315.0,0.00568]
[1766142702960,0.0113277,88328.0,88315.0,0.00568]
[1766142704869,0.00016988,88329.0,88315.0,0.00568]
[1766142705259,0.52024923,88325.0,88311.0,0.00016988]
[1766142705458,0.011328,88325.0,88311.0,0.00016988]
[1766142705661,0.017008,88325.0,88311.0,0.00016988]
[1766142705968,0.0113286,88321.0,88311.0,0.00016988]
[1766142707170,0.017008,88325.0,88311.0,0.00016988]
[1766142708868,0.00568,88325.0,88311.0,0.00016988]
[1766142709069,1.01784246,88321.0,88280.0,0.50892123]
[1766142709263,0.0113301,88309.0,88292.0,0.001]
[1766142709658,0.00568,88310.0,88293.0,0.011332]
[1766142709855,0.01701,88310.0,88293.0,0.011332]
[1766142710277,0.01717988,88310.0,88293.0,0.01150188]
[1766142711071,0.01717988,88310.0,88300.0,0.50892123]
[1766142711072,0.00584988,88310.0,88300.0,0.50892123]
[1766142711366,0.00568,88315.0,88305.0,0.0113305]
[1766142711672,0.00436,88318.0,88302.0,0.00568]
[1766142711876,0.00436,88318.0,88310.0,0.50892123]
[1766142712673,0.00436,88318.0,88303.0,0.0113308]
[1766142712871,0.00436,88318.0,88302.0,0.00568]
[1766142713173,0.00436,88318.0,88302.0,0.0170109]
[1766142713560,0.0113298,88312.0,88293.0,0.00016988]
[1766142713765,0.01133,88310.0,88294.0,0.02339185]
[1766142713972,0.0113303,88308.0,88293.0,0.00016988]
[1766142714267,0.01133,88310.0,88294.0,0.01935265]
[1766142714474,0.01133,88310.0,88295.0,0.00164]
[1766142715473,0.0113295,88314.0,88296.0,0.0113317]
[1766142715674,0.00436,88318.0,88302.0,0.0113309]
[1766142715864,0.015689,88318.0,88299.0,0.0113313]
[1766142716668,0.015689,88318.0,88295.0,0.00164]
[1766142716873,0.015689,88318.0,88300.0,0.0113311]
[1766142717372,0.015689,88318.0,88295.0,0.00164]
[1766142717573,0.015689,88318.0,88296.0,0.01771271]
[1766142717766,0.015689,88318.0,88297.0,0.01771271]
[1766142717969,0.015689,88318.0,88298.0,0.0177127]
[1766142718166,0.015689,88318.0,88299.0,0.0177127]
[1766142718367,0.015689,88318.0,88302.0,0.0113309]
[1766142718570,0.0113292,88316.0,88303.0,0.0177127]
[1766142718768,0.0113292,88316.0,88304.0,0.0177127]
[1766142718969,0.0113292,88316.0,88299.0,0.0113313]
[1766142719170,0.0113292,88316.0,88301.0,0.0113311]
[1766142719370,0.0113292,88316.0,88302.0,0.0177127]
[1766142719577,0.0113292,88316.0,88303.0,0.0177127]
[1766142719771,0.0113292,88316.0,88304.0,0.0177127]
[1766142719971,0.0113292,88316.0,88305.0,0.0177127]
[1766142720171,0.0113292,88316.0,88306.0,0.0177127]
[1766142720372,0.00436,88318.0,88301.0,0.0113311]
[1766142720571,0.00436,88318.0,88303.0,0.0113308]
[1766142720774,0.00436,88318.0,88307.0,0.0113302]
[1766142721277,0.00436,88318.0,88308.0,0.01771226]
[1766142721576,0.0113287,88320.0,88304.0,0.0113306]
[1766142721781,0.0113287,88320.0,88305.0,0.01771225]
[1766142722078,0.00568,88321.0,88306.0,0.01771225]
[1766142722273,0.00568,88321.0,88307.0,0.01771225]
[1766142722471,0.00568,88321.0,88308.0,5e-08]
[1766142722671,0.00568,88321.0,88305.0,0.00568]
[1766142723473,0.00568,88321.0,88304.0,0.00436]
[1766142724178,0.0113297,88312.0,88304.0,0.00436]
[1766142724682,0.0113293,88315.0,88304.0,0.00436]
[1766142725178,0.0113296,88313.0,88304.0,0.00436]
[1766142729083,0.0113299,88311.0,88304.0,0.00436]
[1766142729280,0.00568,88321.0,88302.0,0.00568]
[1766142729485,0.0113299,88311.0,88302.0,0.00568]
[1766142729686,0.0113295,88314.0,88302.0,0.00568]
[1766142730087,0.0113297,88312.0,88302.0,0.00568]
[1766142732293,0.0113297,88312.0,88298.0,0.0113314]
[1766142732496,0.0113297,88312.0,88299.0,0.00568]
[1766142732986,0.0113299,88310.0,88299.0,0.00568]
[1766142733995,0.0113298,88311.0,88299.0,0.00568]
[1766142734395,0.0113298,88311.0,88300.0,0.01771273]
[1766142734596,0.0113298,88311.0,88301.0,0.01771273]
[1766142734796,0.0113298,88311.0,88302.0,0.01771273]
[1766142735099,0.0113298,88311.0,88303.0,0.01771273]
[1766142735397,0.0113298,88311.0,88304.0,0.01771273]
[1766142735589,0.0113298,88311.0,88305.0,0.00771273]
[1766142735789,0.0113287,88320.0,88294.0,0.0113319]
[1766142735990,0.50834002,88310.0,88293.0,0.00016988]
[1766142736187,0.00544,88309.0,88293.0,0.00016988]
[1766142736697,0.0113315,88298.0,88293.0,0.00016988]
[1766142736993,0.0113312,88301.0,88293.0,0.00016988]
[1766142738395,0.01150058,88304.0,88293.0,0.00016988]
[1766142739896,0.0113311,88302.0,88293.0,0.00016988]
[1766142742103,0.00016988,88304.0,88293.0,0.00016988]
[1766142742803,0.0113314,88299.0,88293.0,0.00016988]
[1766142744005,0.0113309,88303.0,88293.0,0.00016988]
[1766142744303,0.0113311,88301.0,88293.0,0.00016988]
[1766142745996,0.00016988,88304.0,88293.0,0.00016988]
[1766142748507,0.00016988,88304.0,88293.0,0.01150188]
[1766142748711,8e-08,88304.0,88293.0,0.00016988]
[1766142749011,8e-08,88304.0,88300.0,0.0113312]
[1766142749201,8e-08,88304.0,88293.0,0.00016988]
[1766142749202,8e-08,88304.0,88296.0,0.0113316]
[1766142749404,8e-08,88304.0,88298.0,0.0113314]
[1766142751309,8e-08,88304.0,88293.0,0.00016988]
[1766142752213,8e-08,88304.0,88297.0,0.0113315]
[1766142752614,8e-08,88304.0,88297.0,0.0170115]
[1766142753225,8e-08,88304.0,88302.0,0.0113309]
[1766142754906,0.00112,88317.0,88297.0,0.00568]
[1766142756406,0.00392,88319.0,88297.0,0.00568]
[1766142757215,0.00392,88319.0,88302.0,0.0113309]
[1766142758311,0.00392,88319.0,88297.0,0.00568]
[1766142759105,0.00392,88319.0,88303.0,0.0113307]
[1766142760417,0.011329,88318.0,88301.0,0.011331]
[1766142761116,0.011329,88318.0,88303.0,0.0113308]
[1766142761915,0.0113292,88316.0,88302.0,0.0113309]
[1766142762819,0.0152489,88319.0,88302.0,0.0113309]
[1766142763518,0.0152489,88319.0,88304.0,0.0113306]
[1766142767824,0.0152489,88319.0,88306.0,0.0113304]
[1766142769723,0.00392,88319.0,88306.0,0.0113304]
[1766142771424,0.0113289,88318.0,88306.0,0.0113304]
[1766142771815,0.0113289,88318.0,88303.0,0.0113307]
[1766142774325,0.0113289,88318.0,88305.0,0.0113305]
[1766142775726,0.00392,88319.0,88305.0,0.0113305]
[1766142777624,0.00392,88319.0,88307.0,0.0113303]
[1766142777819,0.00392,88319.0,88297.0,0.00568]
[1766142777820,0.00392,88319.0,88309.0,0.01133]
[1766142780026,0.00392,88319.0,88298.0,0.0113314]
[1766142780027,0.00392,88319.0,88300.0,0.50844697]
[1766142780234,0.001,88329.0,88309.0,0.50844697]
[1766142780525,0.001,88329.0,88302.0,0.0113309]
[1766142780526,0.001,88329.0,88315.0,0.0113292]
[1766142780722,0.001,88329.0,88310.0,0.00584988]
[1766142780922,0.001,88329.0,88310.0,0.00016988]
[1766142781117,0.0113278,88327.0,88312.0,0.0113297]
[1766142781321,0.001,88329.0,88311.0,0.00304]
[1766142781532,0.001,88329.0,88314.0,0.0113293]
[1766142782229,0.001,88329.0,88311.0,0.00564]
[1766142782631,0.001,88329.0,88316.0,0.011329]
[1766142782924,0.001,88329.0,88313.0,0.0113295]
[1766142783433,0.001,88329.0,88316.0,0.0113291]
[1766142783928,0.001,88329.0,88315.0,0.0113293]
[1766142784229,0.001,88329.0,88314.0,0.0113294]
[1766142785933,0.001,88329.0,88311.0,0.00564]
[1766142786133,0.001,88329.0,88312.0,0.0113296]
[1766142786634,0.001,88329.0,88315.0,0.0113293]
[1766142788328,0.001,88329.0,88311.0,0.0169697]
[1766142788531,0.001,88329.0,88311.0,0.00564]
[1766142788829,0.0113276,88328.0,88311.0,0.00564]
[1766142790339,0.001,88329.0,88311.0,0.0169697]
[1766142790536,0.001,88329.0,88314.0,0.0113294]
[1766142790739,0.001,88329.0,88311.0,0.00564]
[1766142790940,0.001,88329.0,88316.0,0.0113291]
[1766142791840,0.001,88329.0,88311.0,0.00564]
[1766142792038,0.50815543,88340.0,88319.0,0.50815543]
[1766142792242,0.00568,88339.0,88319.0,0.50815543]
[1766142792738,0.00568,88339.0,88319.0,0.51383543]
[1766142793645,0.00568,88339.0,88324.0,0.0113281]
[1766142794843,0.00568,88339.0,88326.0,0.0113278]
[1766142795044,0.00568,88339.0,88320.0,0.50815543]
[1766142795652,0.00568,88339.0,88331.0,0.0113272]
[1766142795950,0.51948023,88350.0,88333.0,0.0113269]
[1766142796139,0.00568,88349.0,88333.0,0.01149678]
[1766142797551,0.09071741,88380.0,88333.0,0.00016988]
[1766142797850,0.51947773,88370.0,88347.0,0.0113251]
[1766142798050,0.00568,88369.0,88350.0,0.01149448]
[1766142798352,0.00568,88369.0,88350.0,0.50832521]
[1766142799349,0.00568,88369.0,88355.0,0.0113241]
[1766142800448,0.00568,88369.0,88354.0,0.0113242]
[1766142803652,0.00568,88369.0,88351.0,0.00568]
[1766142803653,0.00568,88369.0,88357.0,0.0113239]
[1766142804055,0.00568,88369.0,88351.0,0.00568]
[1766142804643,0.00248,88373.0,88365.0,0.0113228]
[1766142804845,0.50815543,88390.0,88370.0,0.0113222]
[1766142805045,0.00568,88389.0,88370.0,0.0113222]
[1766142805245,0.50815543,88390.0,88370.0,0.51947763]
[1766142805551,0.00568,88389.0,88372.0,0.0113219]
[1766142805752,0.0169998,88389.0,88370.0,0.50815543]
[1766142805955,0.0113202,88387.0,88369.0,0.0170024]
[1766142806142,0.00568,88389.0,88369.0,0.0170024]
[1766142806340,0.01132,88388.0,88369.0,0.0170024]
[1766142807659,0.0113204,88385.0,88369.0,0.00568]
[1766142807957,0.0113201,88387.0,88369.0,0.0170023]
[1766142808363,0.00568,88389.0,88369.0,0.0170023]
[1766142809157,0.00568,88389.0,88372.0,0.0113219]
[1766142809964,0.01132,88388.0,88369.0,0.00568]
[1766142810350,0.01132,88388.0,88369.0,0.0170023]
[1766142812059,0.0113203,88386.0,88369.0,0.0170023]
[1766142812662,0.00568,88389.0,88369.0,0.0170023]
[1766142812863,0.00568,88389.0,88371.0,0.0113221]
[1766142813055,0.00568,88389.0,88373.0,0.0113218]
[1766142813255,0.01132,88388.0,88373.0,0.0113218]
[1766142813455,0.00568,88389.0,88373.0,0.0113218]
[1766142814062,0.00568,88389.0,88375.0,0.0113215]
[1766142814256,0.00568,88389.0,88376.0,0.0113214]
[1766142814663,0.50755165,88390.0,88376.0,0.0113214]
[1766142814961,0.00568,88389.0,88376.0,0.0113214]
[1766142815158,0.00568,88389.0,88370.0,0.50755165]
[1766142815861,0.00568,88389.0,88373.0,0.0113218]
[1766142816563,0.00568,88389.0,88375.0,0.0113216]
[1766142816758,0.0113173,88409.0,88369.0,0.00568]
[1766142816962,0.50755165,88420.0,88402.0,0.0113181]
[1766142817155,0.00568,88417.0,88401.0,0.00016966]
[1766142817354,0.00568,88417.0,88403.0,0.0113179]
[1766142817556,0.0113153,88424.0,88406.0,0.0113176]
[1766142817761,0.00528,88421.0,88403.0,0.011318]
[1766142817967,0.50755165,88420.0,88403.0,0.011318]
[1766142818259,0.00528,88421.0,88405.0,0.0113177]
[1766142818466,0.50755165,88420.0,88405.0,0.0169977]
[1766142818664,0.00528,88421.0,88405.0,0.0169977]
[1766142818868,0.00568,88425.0,88409.0,0.0113171]
[1766142819163,0.00568,88425.0,88406.0,0.0113175]
[1766142819364,0.00568,88425.0,88405.0,0.00568]
[1766142819565,0.50755165,88415.0,88406.0,0.00568]
[1766142819758,0.51886755,88420.0,88401.0,0.01148796]
[1766142819958,0.0113162,88417.0,88402.0,0.00296]
[1766142820466,0.0113171,88411.0,88401.0,0.00016966]
[1766142820960,0.0113169,88412.0,88401.0,0.00016966]
[1766142821364,0.00568,88416.0,88401.0,0.00016966]
[1766142821767,0.0169964,88416.0,88401.0,0.00016966]
[1766142821968,0.0113167,88414.0,88401.0,0.00016966]
[1766142823567,0.0113169,88412.0,88401.0,0.00016966]
[1766142824768,0.00568,88416.0,88401.0,0.00016966]
[1766142824969,0.00568,88416.0,88402.0,0.0113181]
[1766142825368,0.00568,88416.0,88406.0,0.50755165]
[1766142825563,6.92390275,88440.0,88406.0,0.50755165]
[1766142825564,4.54546275,88440.0,88406.0,0.50755165]
[1766142825764,0.0113148,88429.0,88420.0,0.50755165]
[1766142825965,0.0113147,88429.0,88419.0,0.50755165]
[1766142826172,0.011315,88427.0,88419.0,0.50755165]
[1766142826473,0.0113153,88425.0,88416.0,0.00016966]
[1766142827663,0.011315,88427.0,88416.0,0.00016966]
[1766142827870,0.0113153,88425.0,88416.0,0.00016966]
[1766142828069,0.0113148,88428.0,88416.0,0.00016966]
[1766142828271,0.00568,88431.0,88418.0,0.50755165]
[1766142828670,0.00568,88431.0,88416.0,0.00016966]
[1766142828872,0.0113151,88426.0,88416.0,0.00016966]
[1766142829168,0.00568,88431.0,88416.0,0.00016966]
[1766142830173,0.0113153,88425.0,88416.0,0.00016966]
[1766142830674,0.0113156,88423.0,88416.0,0.00016966]
[1766142831469,0.0113158,88421.0,88393.0,0.06102558]
[1766142831670,0.0113167,88414.0,88400.0,0.50755165]
[1766142831860,0.0113169,88412.0,88396.0,0.0113189]
[1766142832067,0.0113175,88408.0,88397.0,0.0056]
[1766142832270,0.011317,88411.0,88398.0,0.00568]
[1766142832470,0.011317,88412.0,88399.0,0.00568]
[1766142833066,0.0113168,88413.0,88399.0,0.00568]
[1766142833271,0.011317,88411.0,88399.0,0.00568]
[1766142833471,0.011317,88411.0,88400.0,0.50755165]
[1766142833878,0.0113167,88413.0,88400.0,0.50755165]
[1766142834480,0.00016896,88414.0,88403.0,0.0113179]
[1766142834776,0.00016896,88414.0,88400.0,0.51886995]
[1766142835272,0.00016896,88414.0,88403.0,0.011318]
[1766142835477,0.00276,88435.0,88410.0,0.011317]
[1766142835777,0.0113147,88430.0,88412.0,0.0113168]
[1766142835976,0.00276,88435.0,88411.0,0.00568]
[1766142836171,0.0113153,88425.0,88411.0,0.00568]
[1766142836364,0.50755165,88430.0,88411.0,0.00568]
[1766142836365,0.00568,88427.0,88411.0,0.00568]
[1766142836868,0.0113164,88416.0,88409.0,0.00016966]
[1766142837076,0.51323165,88420.0,88394.0,2.37736]
[1766142837274,0.51323165,88420.0,88400.0,0.50755165]
[1766142837275,0.0113171,88411.0,88400.0,0.50755165]
[1766142837473,0.51323165,88420.0,88401.0,0.00568]
[1766142837869,0.00568,88420.0,88401.0,0.00568]
[1766142838071,0.00016966,88419.0,88402.0,0.00016966]
[1766142838277,0.0113169,88412.0,88402.0,0.00016966]
[1766142838472,0.00016966,88419.0,88402.0,0.00016966]
[1766142838678,0.50755165,88412.0,88385.0,2.37732]
[1766142838979,0.50755165,88412.0,88373.0,0.06405041]
[1766142838980,0.0113173,88409.0,88390.0,0.50755165]
[1766142839169,0.0113191,88395.0,88380.0,0.50755165]
[1766142839372,0.0113191,88395.0,88381.0,0.00568]
[1766142839574,0.0113191,88395.0,88378.0,0.00226302]
[1766142839575,0.50755165,88391.0,88379.0,0.00016966]
[1766142839772,0.50755165,88391.0,88369.0,0.0113222]
[1766142839773,0.0056,88390.0,88372.0,0.00568]
[1766142839974,0.0113205,88384.0,88372.0,0.00568]
[1766142840374,0.0113201,88387.0,88372.0,0.00568]
[1766142841074,0.0056,88390.0,88375.0,0.0113216]
[1766142841279,0.0056,88390.0,88380.0,0.50755165]
[1766142841469,0.0113191,88395.0,88380.0,0.50755165]
[1766142841671,0.00568,88394.0,88380.0,0.51887255]
[1766142841978,0.00568,88394.0,88380.0,0.50755165]
[1766142842370,0.0113194,88393.0,88378.0,0.00568]
[1766142842765,0.00568,88394.0,88380.0,0.50755165]
[1766142843579,0.00568,88394.0,88383.0,0.0113204]
[1766142843881,0.0113158,88421.0,88390.0,0.0113196]
[1766142844080,0.50755165,88410.0,88390.0,0.50755165]
[1766142844279,0.0036,88409.0,88394.0,0.0113191]
[1766142844580,0.50755165,88420.0,88390.0,0.50755165]
[1766142844780,0.0113161,88418.0,88401.0,0.0113182]
[1766142844980,0.0113161,88418.0,88402.0,0.011318]
[1766142845183,0.0113161,88418.0,88401.0,0.00016966]
[1766142845681,0.00584966,88419.0,88401.0,0.00016966]
[1766142845883,0.00016966,88419.0,88401.0,0.00016966]
[1766142846179,0.00016966,88419.0,88402.0,0.011318]
[1766142846378,0.00016966,88419.0,88403.0,0.00088]
[1766142846574,0.0113161,88418.0,88403.0,0.00088]
[1766142846774,0.00016966,88419.0,88403.0,0.00088]
[1766142846976,0.00016966,88419.0,88404.0,0.0113178]
[1766142847170,0.00016966,88419.0,88403.0,0.00088]
[1766142847372,0.00016966,88419.0,88410.0,0.011317]
[1766142847573,0.00448,88425.0,88410.0,0.011317]
[1766142847777,0.00448,88425.0,88407.0,0.0113175]
[1766142847978,0.00448,88425.0,88403.0,0.00088]
[1766142848573,0.00016966,88423.0,88403.0,0.00088]
[1766142849265,0.002262,88418.0,88411.0,0.011317]
[1766142849472,0.002262,88418.0,88408.0,0.0113173]
[1766142849681,0.002262,88418.0,88408.0,0.0169973]
[1766142849981,0.00448,88425.0,88408.0,0.00568]
[1766142850181,0.00448,88425.0,88412.0,0.0113168]
[1766142850682,0.00448,88425.0,88409.0,0.0113172]
[1766142851283,0.0113153,88424.0,88408.0,0.00568]
[1766142851483,0.00448,88425.0,88409.0,0.0113172]
[1766142851682,0.00448,88425.0,88412.0,0.0113168]
[1766142852285,0.00448,88425.0,88411.0,0.0113169]
[1766142853681,0.0157953,88425.0,88408.0,0.0169974]
[1766142853987,0.0113161,88419.0,88409.0,0.00568]
[1766142854282,0.00448,88425.0,88401.0,0.00016966]
[1766142854487,0.0113168,88413.0,88402.0,0.00568]
[1766142854788,0.0113168,88413.0,88401.0,0.00016966]
[1766142854990,0.0113162,88417.0,88401.0,0.00016966]
[1766142855178,0.0113166,88415.0,88402.0,0.00168]
[1766142856386,0.0113166,88415.0,88401.0,0.00584966]
[1766142857884,0.011317,88412.0,88401.0,0.00568]
[1766142858078,0.00568,88416.0,88384.0,0.0113204]
[1766142858278,0.0113184,88401.0,88386.0,0.0113201]
[1766142858487,0.0113179,88404.0,88387.0,0.00568]
[1766142858686,0.0113179,88404.0,88388.0,0.0113199]
[1766142858888,0.00016966,88405.0,88388.0,0.0113199]
[1766142859188,0.00016966,88405.0,88387.0,0.00584966]
[1766142859688,0.00016966,88405.0,88390.0,0.0113196]
[1766142860387,0.00016966,88405.0,88387.0,0.00016966]
[1766142860791,0.00016966,88405.0,88388.0,0.00568]
[1766142861282,0.00016966,88405.0,88392.0,0.0113193]
[1766142861483,0.00016966,88405.0,88389.0,0.0113197]
[1766142861690,0.00016966,88405.0,88391.0,0.0113195]
[1766142863096,0.00016966,88405.0,88393.0,0.0113192]
[1766142863692,0.00016966,88405.0,88388.0,0.00568]
[1766142864191,0.00016966,88405.0,88391.0,0.0113194]
[1766142864587,0.00016966,88405.0,88393.0,0.0113192]
[1766142864796,0.00016966,88405.0,88388.0,0.00568]
[1766142865095,0.00168,88414.0,88388.0,0.0169999]
[1766142865294,0.0113164,88416.0,88388.0,0.0169999]
[1766142865690,0.0113166,88414.0,88397.0,0.0113187]
[1766142865994,0.0113166,88414.0,88399.0,0.0113185]
[1766142866289,0.0113163,88417.0,88401.0,0.0113182]
[1766142866494,0.00348,88418.0,88398.0,0.00568]
[1766142866794,0.0113166,88414.0,88399.0,0.0113185]
[1766142867094,0.00348,88418.0,88398.0,0.00568]
[1766142867286,0.0113167,88414.0,88400.0,0.0113183]
[1766142867594,0.00348,88418.0,88399.0,0.0113185]